Cogmind - Beta 13 @@@ ROGUE MODE // 2024.03.31 @ 17:39:07 Player: Sage Result: Destroyed by G-47 Trooper with Particle Gun Performance ------------- Evolutions (1) 500 Regions Visited (5) 1000 Robots Destroyed (61) 305 Value Destroyed (1634) 1634 Prototype IDs (1) 20 Alien Tech Used (0) 0 Bonus (217) 217 TOTAL SCORE: 3676 Bonus ------- High Alert Combat Kills 8 Follower Combat Kills 35 Entered Garrisons 200 Friendly Fire -26 Cogmind --------- Core Integrity 0/400 Matter 299/300 Energy 230/250 System Corruption 7% Temperature Hot (247) Movement Walking (120) Location -9/Garrison Parts ------- > --- POWER (1) -------- Ion Engine > --- PROPULSION (3) --- Aluminum Leg Aluminum Leg Aluminum Leg > --- UTILITY (2) ------ Target Analyzer Hacking Suite > --- WEAPON (3) ------- Beam Rifle Light Assault Rifle > --- INVENTORY (5) ---- Gravmag System Improved Heat Sink Relay Coupler [Grunt] (21) Drone Bay (2/2) Light Assault Rifle Peak State ------------ > --- POWER ------------ Light Angular Momentum Engine > --- PROPULSION ------- Improved Aluminum Leg Carbon-fiber Leg Carbon-fiber Leg > --- UTILITY ---------- Improved Heat Sink Improved Trap Extractor > --- WEAPON ----------- Field Laser EM Pulse Cannon High-powered Shotgun > --- INVENTORY -------- Improved Ion Engine Improved Heat Sink Beamcaster Beamcaster Grenade Launcher [Rating: 30] Favorites ----------- Power Light Ion Engine Engine Light Ion Engine Power Core Light Nuclear Core Propulsion Aluminum Leg Treads Light Treads Leg Aluminum Leg Hover Unit Gravmag System Flight Unit Flight Unit Utility Hacking Suite Device Improved Heat Sink Storage Small Storage Unit Processor Terrain Scan Processor Hackware Hacking Suite Protection Improved Utility Shielding Weapon Light Assault Rifle Energy Gun Field Laser Energy Cannon EM Pulse Cannon Ballistic Gun Light Assault Rifle Impact Weapon Hammer Slashing Weapon Mining Claw Build | -11 -10 -10 -9 -9 -9 ------- Run | Yrd Mat Min Mat Sto Gar Slots Evolved 2 | . . . 2 . . Power . | . . . . . . Propulsion 1 | . . . 1 . . Utility . | . . . . . . Weapon 1 | . . . 1 . . Parts Attached 85 | 7 9 11 16 18 24 Power 12 | 1 2 2 1 3 3 Engine 10 | 1 1 2 1 2 3 Core 2 | . 1 . . 1 . Reactor . | . . . . . . Propulsion 30 | 2 2 4 6 6 10 Treads 5 | 2 . . . 2 1 Leg 20 | . . 3 6 4 7 Wheel . | . . . . . . Hover 1 | . . . . . 1 Flight 4 | . 2 1 . . 1 Utility 18 | 1 2 3 5 2 5 Device 9 | . 1 2 3 1 2 Storage 1 | 1 . . . . . Processor 3 | . 1 . . 1 1 Hackware 1 | . . . 1 . . Protection 4 | . . 1 1 . 2 Artifact . | . . . . . . Weapon 25 | 3 3 2 4 7 6 Energy Gun 11 | 1 . 1 1 4 4 Energy Cannon 3 | . . 1 2 . . Ballistic Gun 9 | 2 2 . 1 2 2 Ballistic Cannon . | . . . . . . Launcher . | . . . . . . Special Weapon . | . . . . . . Impact Weapon 1 | . . . . 1 . Slashing Weapon 1 | . 1 . . . . Piercing Weapon . | . . . . . . Special Melee Weapon . | . . . . . . Unidentified Prototypes 1 | . . . 1 . . Parts Lost 14 | . . 1 . 4 9 Power 2 | . . . . . 2 Propulsion 6 | . . 1 . 2 3 Utility 1 | . . . . . 1 Weapon 5 | . . . . 2 3 Highest Loss Streak 4 | . . 1 . 3 4 To Critical Strikes . | . . . . . . Average Slot Usage (%) 95 | . 95 99 97 93 89 Engine 8 | . 12 7 10 6 7 Core 3 | . 1 6 . 4 2 Treads 2 | . 13 . . 2 3 Leg 22 | . . 14 31 26 23 Flight 3 | . 14 13 . . . Device 9 | . 10 13 12 10 1 Processor 3 | . 8 8 . . 5 Hackware 7 | . . . 6 11 11 Protection 1 | . . 5 2 . 1 Energy Gun 13 | . . 5 13 15 20 Energy Cannon 3 | . . 5 8 . . Ballistic Gun 13 | . 27 16 11 15 9 Naked Turns . | . . . . . . Heaviest Build 27 | 11 12 23 27 21 17 Greatest Support 43 | 40 40 20 43 43 30 Greatest Overweight (x) 3 | 3 . 1 1 3 3 Average Overweight (x) . | . . . . . . Largest Inventory Capacity 8 | 8 8 5 5 5 5 Average Capacity 5 | 7 6 5 5 5 5 Most Carried 8 | 6 8 5 5 5 5 Average Carried 4 | 5 5 4 4 4 4 Final Capacity 8 | 8 5 5 5 5 5 Final Carried 6 | 6 5 5 5 4 5 Class Distribution -------------------- 45% | Scavenger-Gunner 30% | Mutant 18% | Scavenger-Mutant 4% | Tank Dominant Class ---------------- Mutant | -10/Materials Scavenger-Mutant | -10/Mines Scavenger-Gunner | -9/Materials Scavenger-Gunner | -9/Storage Scavenger-Gunner | -9/Garrison Resources | -11 -10 -10 -9 -9 -9 ----------- Run | Yrd Mat Min Mat Sto Gar Matter Collected 1634 | 240 164 137 309 395 389 Remotely . | . . . . . . Salvage Created 2212 | . 145 81 448 945 593 Parts 148 | . 18 8 41 39 42 Haulers Intercepted . | . . . . . . Recyclers Shooed 1 | . . . 1 . . Parts Field Recycled . | . . . . . . Retrieved Matter . | . . . . . . Parts Self-Destructed . | . . . . . . Prevented . | . . . . . . Kills | -11 -10 -10 -9 -9 -9 ------- Run | Yrd Mat Min Mat Sto Gar Combat Hostiles Destroyed 51 | . 4 4 9 16 18 Guns 49 | . 4 4 7 16 18 Cannons 2 | . . . 2 . . Classes Destroyed 10 | . 4 . 4 1 1 Worker 1 | . . . 1 . . Builder 1 | . 1 . . . . Recycler 3 | . . . 1 2 . Operator 1 | . . . 1 . . Watcher 4 | . 1 . 2 1 . Swarmer 16 | . 3 3 3 . 7 Grunt 24 | . 1 1 3 10 9 Brawler 1 | . . . . 1 . Sentry 9 | . . . 3 5 1 Programmer 1 | . . . . . 1 Best Kill Streak 7 | . 4 3 3 4 7 Combat Bots Only 7 | . 3 3 3 4 7 Max Kills in Single Turn 2 | . 1 2 2 2 1 Gunslinging 1 | . . 1 1 1 . Exploded . | . . . . . . Melee . | . . . . . . Uniques/NPCs Destroyed . | . . . . . . Combat | -11 -10 -10 -9 -9 -9 -------- Run | Yrd Mat Min Mat Sto Gar Hostile Shots Fired 319 | . 32 22 28 73 164 Missed 90 | . 14 7 8 23 38 Damage Taken 2647 | . 155 254 191 691 1356 Core 492 | . 38 47 17 99 291 Absorbed by Shields . | . . . . . . Regen/Repaired (Parts) 152 | . . . 46 106 . Core Remaining (%) 83 | 100 . 66 . . . Volleys Fired 145 | . 21 13 21 42 48 Largest 3 | . 2 2 3 3 3 Hottest 155 | . 40 40 151 150 155 Shots Fired 359 | . 42 26 63 112 116 Gun 341 | . 42 26 45 112 116 Cannon 18 | . . . 18 . . Launcher . | . . . . . . Special . | . . . . . . Kinetic 186 | . 42 26 21 61 36 Thermal 145 | . . . 24 51 70 Explosive . | . . . . . . Electromagnetic 28 | . . . 18 . 10 Robot Hit Streak 15 | . 3 5 10 15 10 Robot Miss Streak 5 | . 5 2 5 4 2 Penetration Max . | . . . . . . Secondary Targets 15 | . . 2 2 3 8 Max Gunslinging Chain 1 | . . 1 1 1 1 Shots Hit Robots 208 | . 18 18 36 69 67 Core Hits 94 | . 10 11 17 31 25 Critical Kills . | . . . . . . Critical Parts Destroyed . | . . . . . . Critical Strikes 9 | . . . . 2 7 Burn 8 | . . . . 1 7 Destroy 1 | . . . . 1 . Melee Attacks . | . . . . . . Impact . | . . . . . . Slashing . | . . . . . . Piercing . | . . . . . . Sneak Attacks . | . . . . . . Combat Hostiles . | . . . . . . Follow-up Attacks . | . . . . . . Damage Inflicted 3421 | . 177 139 769 1217 1119 Guns 3133 | . 177 139 481 1217 1119 Cannons 288 | . . . 288 . . Explosions . | . . . . . . Melee . | . . . . . . Ramming . | . . . . . . Kinetic 1510 | . 177 139 262 769 163 Thermal 1462 | . . . 219 448 795 Explosive . | . . . . . . Electromagnetic 449 | . . . 288 . 161 Impact . | . . . . . . Slashing . | . . . . . . Piercing . | . . . . . . Highest Corruption 7 | . . . 5 5 7 Average Corruption 5 | . . . 5 5 5 Corruption Purged . | . . . . . . Corruption Blocked . | . . . . . . Effects 58 | . . . 17 22 19 Message Errors 12 | . . . 3 3 6 Matter Fused 13 | . . . 4 6 3 Heat Flow Errors 7 | . . . 4 2 1 Energy Discharges 7 | . . . 1 3 3 Parts Fused 1 | . . . . 1 . Data Loss (minor) 12 | . . . 3 3 6 Data Loss (major) 1 | . . . 1 . . Misfires 3 | . . . . 3 . Alerts 2 | . . . 1 1 . Overload Shots . | . . . . . . Overflow Damage 5 | . . . 5 . . Projectiles 5 | . . . 5 . . Explosions . | . . . . . . Melee . | . . . . . . Knockbacks . | . . . . . . Impact . | . . . . . . Kinetic . | . . . . . . Secondary . | . . . . . . Self-Inflicted Damage . | . . . . . . Shots . | . . . . . . Rammed . | . . . . . . Targets Rammed . | . . . . . . Kicked . | . . . . . . Crushed . | . . . . . . Highest Temperature 481 | . 8 115 339 365 481 Average Temperature 127 | . 4 42 89 64 197 Received Heat Transfer 828 | . 12 129 36 345 306 Effects 10 | . . . . 1 9 Shutdowns 1 | . . . . . 1 Energy Bleed 3 | . . . . . 3 Matter Decay 2 | . . . . . 2 Short Circuit 2 | . . . . 1 1 Damage (minor) 2 | . . . . . 2 Siege Activations . | . . . . . . Robots Corrupted . | . . . . . . Combat Hostiles . | . . . . . . Parts Fried . | . . . . . . Impact Corruptions . | . . . . . . Robots Melted . | . . . . . . Combat Hostiles . | . . . . . . Parts Melted 4 | . . . 1 . 3 Heat Transferred 3509 | . . . 481 1073 1955 Parts Sabotaged . | . . . . . . Parts Stolen . | . . . . . . Parts Stripped . | . . . . . . Power Chain Reactions . | . . . . . . Alert | -11 -10 -10 -9 -9 -9 ------- Run | Yrd Mat Min Mat Sto Gar Peak Influence 412 | . 157 192 229 333 412 Initial 122 | . . 61 . 42 122 Average 129 | . 86 92 106 185 292 Maximum Alert Level 2 | . . . 1 1 2 Low Security (%) 71 | 100 100 100 79 52 16 Level 1 27 | . . . 20 47 81 Level 2 . | . . . . . 2 Level 3 . | . . . . . . Level 4 . | . . . . . . Level 5 . | . . . . . . High Security . | . . . . . . Max Security . | . . . . . . Squads Dispatched 9 | . 4 . 2 3 . Investigation 3 | . . . 2 1 . Extermination . | . . . . . . Reinforcement 6 | . 4 . . 2 . Assault . | . . . . . . Garrison . | . . . . . . Intercept . | . . . . . . Searches Triggered . | . . . . . . Construction Impeded . | . . . . . . Haulers Reinforced . | . . . . . . Active Scanning Responses . | . . . . . . Cargo Convoy Interrupts . | . . . . . . Stealth | -11 -10 -10 -9 -9 -9 --------- Run | Yrd Mat Min Mat Sto Gar Distress Signals 6 | . 2 . 2 2 . Communications Jammed . | . . . . . . Distress Signals . | . . . . . . Times Spotted 69 | . 10 5 14 21 19 Peak Tracking Total 5 | . 3 3 3 4 5 Tactical Retreats 2 | . 1 . 1 . . Traps | -11 -10 -10 -9 -9 -9 ------- Run | Yrd Mat Min Mat Sto Gar Traps Triggered 9 | . . 3 . 4 2 Indirectly . | . . . . . . Trap Hack Attempts . | . . . . . . Triggered . | . . . . . . Disarmed . | . . . . . . Reprogrammed . | . . . . . . Reused . | . . . . . . Traps Extracted . | . . . . . . Installed . | . . . . . . Triggered . | . . . . . . Machines | -11 -10 -10 -9 -9 -9 ---------- Run | Yrd Mat Min Mat Sto Gar Machines Disabled 4 | . . . 3 1 . Max in Single Turn 1 | . . . 1 1 . Machines Repaired . | . . . . . . Machines Dismantled . | . . . . . . Machines Sabotaged . | . . . . . . Overloaded Fab Kills . | . . . . . . Hacking | -11 -10 -10 -9 -9 -9 --------- Run | Yrd Mat Min Mat Sto Gar Machines Accessed 14 | . 2 1 6 5 . Terminals 9 | . 2 . 4 3 . Fabricators . | . . . . . . Repair Stations 2 | . . . 1 1 . Recycling Units 1 | . . . 1 . . Scanalyzers . | . . . . . . Garrison Access 1 | . . . . 1 . Total Hacks 35 | . 6 1 18 10 . Successful 26 | . 3 1 13 9 . Failed 9 | . 3 . 5 1 . Catastrophic 1 | . . . 1 . . Database Lockouts . | . . . . . . Manual 2 | . . . . 2 . Terminals 26 | . 6 . 14 6 . Fabricators . | . . . . . . Repair Stations 5 | . . . 2 3 . Recycling Units 2 | . . . 2 . . Scanalyzers . | . . . . . . Garrison Access 1 | . . . . 1 . Terminal Hacks 18 | . 3 1 9 5 . Record 10 | . 3 . 5 2 . Open Door 3 | . . 1 . 2 . Branch Access Points 1 | . . . 1 . . Alert Level 2 | . . . 1 1 . Locate Traps 1 | . . . 1 . . Hauler Manifests 1 | . . . 1 . . Fabricator Hacks . | . . . . . . Repair Station Hacks 5 | . . . 2 3 . Scan Component 3 | . . . 1 2 . Repair 2 | . . . 1 1 . Recycling Unit Hacks 2 | . . . 2 . . Process 1 | . . . 1 . . Report Inventory 1 | . . . 1 . . Scanalyzer . | . . . . . . Garrison Access Hacks 1 | . . . . 1 . Unlock Access 1 | . . . . 1 . Unauthorized Hacks . | . . . . . . Terminals . | . . . . . . Fabricators . | . . . . . . Repair Stations . | . . . . . . Recycling Units . | . . . . . . Scanalyzers . | . . . . . . Garrison Access . | . . . . . . Data Cores Recovered 1 | . . . 1 . . Used 1 | . . . 1 . . Hacking Detections 11 | . 1 . 6 4 . Full Trace Events 5 | . 1 . 2 2 . Feedback Events . | . . . . . . Feedback Blocked . | . . . . . . Robot Schematics Acquired . | . . . . . . Robots Built . | . . . . . . Authchips . | . . . . . . Time . | . . . . . . Total Robot Build Rating . | . . . . . . Part Schematics Acquired . | . . . . . . Parts Built . | . . . . . . Authchips . | . . . . . . Time . | . . . . . . Total Part Build Rating . | . . . . . . Parts Repaired 2 | . . . 1 1 . Time 82 | . . . 50 32 . Parts Recycled . | . . . . . . Recycled Matter 188 | . . . 188 . . Retrieved Matter . | . . . . . . Retrieved Components . | . . . . . . Parts Scanalyzed . | . . . . . . Part Schematics Acquired . | . . . . . . Parts Damaged . | . . . . . . Bothacking | -11 -10 -10 -9 -9 -9 ------------ Run | Yrd Mat Min Mat Sto Gar Used RIF Installer . | . . . . . . Robots Hacked . | . . . . . . Non-combat . | . . . . . . Combat . | . . . . . . Robot Hacks Applied . | . . . . . . Relay Couplers Released 4 | . . . . . 4 Programmers 4 | . . . . . 4 Fabnet Peak Effective % . | . . . . . . Robots Rewired . | . . . . . . Allies Hacked . | . . . . . . Hacks Repelled . | . . . . . . Allies | -11 -10 -10 -9 -9 -9 -------- Run | Yrd Mat Min Mat Sto Gar Total Allies 2 | . . 2 . . . Largest Group 2 | . . 2 2 . . Highest-Rated Group 45 | . . 45 45 . . Highest-Rated Ally 31 | . . 31 31 . . Total Orders . | . . . . . . Ally Attacks 12 | . . 9 3 . . Total Damage 103 | . . 42 61 . . Kills 1 | . . 1 . . . Allies Corrupted . | . . . . . . Allies Melted . | . . . . . . Intel | -11 -10 -10 -9 -9 -9 ------- Run | Yrd Mat Min Mat Sto Gar Robot Analysis Total . | . . . . . . Derelict Logs Recovered . | . . . . . . Drone Launches 4 | . . . . 2 2 Drone Recoveries 1 | . . . . . 1 Exploration | -11 -10 -10 -9 -9 -9 ------------- Run | Yrd Mat Min Mat Sto Gar Turns Passed 4218 | 883 248 635 862 867 723 Spaces Moved 2297 | 177 286 526 418 488 402 Core 18 | 16 . . . 1 1 Treads 352 | 161 44 . . 82 65 Legs 1307 | . . 174 418 405 310 Wheels . | . . . . . . Hover 25 | . . . . . 25 Flight 595 | . 242 352 . . 1 Fastest Speed 37 | 50 37 37 120 120 70 Average Speed 110 | 157 55 83 127 128 126 Slowest Speed 210 | 200 160 190 190 200 210 Overloaded Moves . | . . . . . . Propulsion Burnouts . | . . . . . . Robots Hopped 1 | . . 1 . . . Cave-ins Triggered . | . . . . . . Exploration Rate (%) 47 | 22 58 62 39 68 38 Regions Visited 5 Branch Regions 2 Pre-discovered Areas . | . . . . . . Known Exits Taken 2 | . . . 1 1 . Unknown Exits Taken 3 | 1 1 1 . . . Scrap Searched 1 | . . 1 . . . Spaces Dug . | . . . . . . Terrain Destroyed . | . . . . . . Melee . | . . . . . . Projectile . | . . . . . . AOE . | . . . . . . Terrain Rammed . | . . . . . . Walls Destroyed . | . . . . . . Machines Disabled . | . . . . . . Actions | -11 -10 -10 -9 -9 -9 --------- Run | Yrd Mat Min Mat Sto Gar Total 3691 | 778 338 703 700 644 528 Wait 1067 | 589 2 139 227 82 28 Move 2288 | 176 285 523 417 487 400 Hop 1 | . . 1 . . . Pick Up 36 | 6 9 4 4 6 7 Fast Attach 49 | 6 1 8 8 9 17 Attach 12 | . 1 . 2 7 2 Detach 3 | . . . 1 . 2 Swap 24 | 1 7 3 6 2 5 Drop 61 | . 12 12 14 9 14 Fire 145 | . 21 13 21 42 48 Melee . | . . . . . . Ram . | . . . . . . Kick . | . . . . . . Crush . | . . . . . . Escape Stasis 5 | . . . . . 5 Rewire . | . . . . . . Trap . | . . . . . . Miscellaneous . | . . . . . . Route ------- -11/Scrapyard -10/Materials -10/Mines (discovered 2 exits: *Mat / [*Exi]) -9/Materials (discovered 4 exits: [*Mat] / Min / *Sto x2) -9/Storage (discovered 2 exits: [*Mat] / Gar) -9/Garrison (discovered 1 exit: [*Mat]) History --------- Turn | Location | Event 14 | -11/Scrapyard | Discovered new exit (range 15) 884 | -11/Scrapyard | Entered Materials 885 | -10/Materials | Build established: Mutant 1084 | -10/Materials | Discovered new exit (range 9) 1132 | -10/Materials | Entered Mines 1142 | -10/Mines | Deemed a non-threat by the Exiles lab entrance 1142 | -10/Mines | Discovered new exit (range 5) 1156 | -10/Mines | Met a Derelict bent on vengeance 1306 | -10/Mines | Build established: Scavenger-Mutant 1310 | -10/Mines | Discovered new exit (range 7) 1474 | -10/Mines | Met a Derelict who couldn't figure out how to use a Trap Extractor 1643 | -10/Mines | Assembled infested the area 1767 | -10/Mines | Entered Materials 1767 | -9/Materials | Accompanied by 2 allies 1767 | -9/Materials | Evolved 2 slots: Propulsion x1, Weapon x1 1772 | -9/Materials | Led the pair of lost Derelicts to an unsafe place 2100 | -9/Materials | Discovered new exit (range 16) 2101 | -9/Materials | Identified exit to Mines 2101 | -9/Materials | Identified exit to Storage 2402 | -9/Materials | Build established: Scavenger-Gunner 2541 | -9/Materials | Repaired Lgt. Angular Momentum Engine 2629 | -9/Materials | Entered Storage 3270 | -9/Storage | Lost 3 parts (2n1w) 3417 | -9/Storage | Repaired Autogun? 3450 | -9/Storage | Discovered new exit (range 16) 3495 | -9/Storage | Identified exit to Garrison 3496 | -9/Storage | Entered Garrison 3520 | -9/Garrison | Triggered checkpoint 3600 | -9/Garrison | Triggered checkpoint 3613 | -9/Garrison | Triggered checkpoint 3641 | -9/Garrison | Core integrity fell below 50% 3672 | -9/Garrison | Destroyed 7 combat bots 3674 | -9/Garrison | Lost 3 parts (1p1n1u) 3709 | -9/Garrison | Discovered new exit (range 11) 3849 | -9/Garrison | Attempted to access garrison exit controls, blocked by remote lockdown 3885 | -9/Garrison | Core integrity fell below 20% 3912 | -9/Garrison | Lost 4 parts (1p2n1w) 3976 | -9/Garrison | Triggered checkpoint 4112 | -9/Garrison | Triggered checkpoint 4219 | -9/Garrison | Destroyed by G-47 Trooper with Particle Gun Last Messages --------------- 04136_ Field strength at 85. 04137_ Field strength at 70. 04138_ Field strength at 55. 04147_ Field strength at 40. 04148_ Field strength at 25. 04149_ Field strength at 10. 04150_ Stasis field depleted. 04151_ Dropped Lgt. Treads. 04155_ System corrupted: Energy discharge (-77). 04158_ Acquired Aluminum Leg. 04160_ Acquired 10 matter. 04196_ G-34 Mercenary destroyed. 04196_ Switching to secondary target: G-34 Mercenary. 04199_ G-34 Mercenary suffers critical hit (Burn). 04202_ G-34 Mercenary destroyed. 04205_ S/6ZV1%FYFR T3|HL38#A||GLF|V6KFPB,| 04205_ Critical hit (Burn: +37). 04215_ Shock Rifle destroyed. Map ----- +----------------------------------------------------+ | * #???????????????????????????????????? | | "#???????????????????????????????????? | | "%#???????????????????????????????????? | | "#???????????????????????????????????? | | ## ## ###???????????????????????????????????? | | ## ## #?????????????????????????????????????? | | #?????????????????????????????????????? | | #?????????????????????????????????????? | | #?????????????????????????????????????? | | ##""""## #?????????????????????????????????????? | | ???????# #?????????????????????????????????????? | | ???????# ^ #?????????????????????????????????????? | | ???????# #?????????????????????????????????????? | | ???????# #?????????????????????????????????????? | | ???????# #?????????????????????????????????????? | | ???????# ################################??????? | | ???????# ??????? | | ???????# ??????? | | ???????# ??????? | | ???????##################### #######????????????? | | ???????????????????????????# #??????????????????? | | ???????????????????????????#**#??????????????????? | | ?????????????###############%%#??????????????????? | | ?????????????# =*^*=#??????????????????? | | ?????????????# g% #??????????????????? | | ?????????????## ##### @#####??????????????????? | | ?????????????#"""""#??# #??????????????????????? | | ?????????????#######??#####??????????????????????? | | ?????????????????????????????????????????????????? | | ?????????????????????????????????????????????????? | | ?????????????????????????????????????????????????? | | ?????????????????????????????????????????????????? | | ?????????????????????????????????????????????????? | | ?????????????????????????????????????????????????? | | ?????????????????????????????????????????????????? | | ?????????????????????????????????????????????????? | | ?????????????????????????????????????????????????? | | ?????????????????????????????????????????????????? | | ?????????????????????????????????????????????????? | | ?????????????????????????????????????????????????? | | ?????????????????????????????????????????????????? | | ?????????????????????????????????????????????????? | | ?????????????????????????????????????????????????? | | ?????????????????????????????????????????????????? | | ?????????????????????????????????????????????????? | | ?????????????????????????????????????????????????? | | ?????????????????????????????????????????????????? | | ?????????????????????????????????????????????????? | | ?????????????????????????????????????????????????? | | ?????????????????????????????????????????????????? | +----------------------------------------------------+ Best States ------------- Heat Dissipation 42 Energy Generation 18 Energy Capacity 265 Matter Stores 300 Matter Capacity 300 Sight Range 16 Terrain Scan Density 85 Armor Coverage 150 Utility Shielding 66 Evasion (%) 62 Targeting Accuracy 6 Target Analysis 5 Recoil Reduction 2 Offensive Hacking 10 Trap Extractor Capacity 6 Item Schematics ----------------- None Robot Schematics ------------------ None Fabricated ------------ Nothing Alien Tech Used ----------------- None Achievements -------------- Dynamic Key Librarian Challenges ------------ None Game ------ Seed DecoderCouplerWell Manual? 0 Play Time 00:57:04 Cumulative 3.3 hours Start 2024.03.31 @ 16:42:39 End 2024.03.31 @ 17:39:07 Sessions 1 Manual Loads 0 Difficulty Rogue Special Mode None Game No. 4 Rogue 4 Adventurer 0 Explorer 0 Win Type - Total 0 Types 0/0/0/0/0/0/0/0/0 Lore% 4 Gallery% 8 Achievement% 7 Wizard Run 0 Options --------- Layout 1 ASCII 0 Keyboard 0 Movement Mouse Keybinds 0 Fullscreen 1 Font 24/Terminus Map View 50x35 Zoom Use 0% Tactical HUD 1 Map Filters NONE Filters NONE Steam 1 RUN: 2311ad9b-e306-4374-9e1a-49e895573b24